[Event "CCT Airthings Masters Play-In 2023"]
[Site "Online"]
[Date "2023.02.03"]
[Round "2"]
[White "Gajuchess"]
[Black "Puranik, Abhimanyu"]
[Result "0-1"]
[ECO "D03"]
[WhiteElo "2491"]
[BlackElo "2596"]
[Annotator "TA"]
[PlyCount "50"]
[EventDate "2023.02.03"]
[EventType "swiss"]
[EventCountry "NET"]
[SourceTitle "playchess.com"]
[Source "ChessBase"]
[SourceQuality "1"]
[TimeControl "600+2"]

{[%evp 13,50,-4,-8,-25,0,0,0,0,0,0,0,0,21,0,66,68,171,169,152,91,270,224,252,234,239,236,233,243,236,235,243,247,251,239,239,99,183,-279,-285]} 1. d4 {[%emt 0:00:28]} Nf6 {[%emt 0:00:05]} 2. Nf3 {[%emt 0:00:04]} g6 {[%emt 0:00:02]} 3. Bg5 {[%emt 0:00:09]} Bg7 {[%emt 0:00:01]} 4. Nbd2 {[%emt 0:00:01]} d5 {[%emt 0:00:04]} 5. c3 {[%emt 0:00:02]} O-O {[%emt 0:00:02]} 6. e3 {[%emt 0:00:01]} Nbd7 {[%emt 0:00:02] 6...c5 might become the main line.} 7. Bd3 {[%emt 0:00:02]} Re8 {[%emt 0:00:04]} 8. h4 {[%emt 0:00:13] D03: 1 d4 d5 2 Nf3 Nf6 3 Bg5, including Torre Attack with early ...d5.} e5 {[%emt 0:00:08]} 9. dxe5 {[%emt 0:00:02]} Nxe5 {[%emt 0:00:02]} 10. Nxe5 {[%emt 0:00:00] The position is equal.} Rxe5 {[%emt 0:00:01]} 11. Nf3 {[%emt 0:00:03]} Re8 {[%emt 0:00:04]} 12. h5 {[%emt 0:00:06] [#]} Qd6 $146 {[%emt 0:00:15]} ({Predecessor:} 12... Qd7 13. hxg6 hxg6 14. Bxf6 Bxf6 15. Qc2 Kg7 16. O-O-O Qc6 17. Qb3 Bd7 18. Bc2 Qa6 {½-½ Taleb,M (2508)-Mohammad,S (2312) Arab-ch Dubai 2005 (8)}) 13. hxg6 {[%emt 0:00:02]} fxg6 {[%emt 0:00:07]} (13... hxg6 $11 14. Qa4 Bg4) 14. Qa4 $14 {[%emt 0:00:09] And now Qh4 would win.} b5 {[%emt 0:02:04]} 15. Qh4 $18 {[%emt 0:00:05]} (15. Bxb5 $6 Re4 16. Qc2 Rb8 $14) (15. Qxb5 $6 Bd7 16. Qa5 Qb6 17. Qxb6 axb6 $14) 15... b4 {[%emt 0:00:32]} 16. cxb4 {[%emt 0:00:25]} (16. Bxf6 $142 Qxf6 17. Qxh7+ (17. Qxb4 Qe7 $14) 17... Kf7 18. Rh6 (18. cxb4 Rh8 $11)) 16... Rb8 $2 {[%emt 0:00:06]} (16... Nh5 $16) 17. a3 {[%emt 0:00:03]} a5 {[%emt 0:00:38]} 18. Bxf6 {[%emt 0:00:08][%mdl 64] [#] Remove Defender} (18. bxa5 Nh5 $14) 18... Qxf6 {[%emt 0:00:03]} 19. Qxh7+ {[%emt 0:00:02]} (19. bxa5 Qxh4 20. Rxh4 Bxb2 $11) 19... Kf7 {[%emt 0:00:03]} 20. Rc1 {[%emt 0:00:42]} (20. bxa5 Rh8 21. Qxg6+ (21. Bxg6+ $2 Kf8 $19) 21... Qxg6 22. Bxg6+ Kxg6 23. Rxh8 Bxh8 $15) 20... Rb7 {[%emt 0:00:52][%cal Bb8b7,Bb7b4,Bb4g4][%mdl 32]} 21. Qh2 {[%emt 0:04:19]} ({But not} 21. bxa5 Rh8) 21... c6 {[%emt 0:00:40]} 22. Qg3 {[%emt 0:00:58] [#] Threatens to win with Rh4.} ({Weaker is} 22. bxa5 Rh8 23. Bxg6+ (23. Nh4 g5 $11) 23... Qxg6 24. Qf4+ Ke8 25. Rxh8+ Bxh8 $11) 22... axb4 {[%emt 0:00:21]} 23. axb4 {[%emt 0:00:27]} Rxb4 {[%emt 0:00:40]} 24. Rh7 {[%emt 0:00:26]} (24. Qc7+ $18 Kg8 25. Rxc6) 24... Kg8 {[%emt 0:00:12]} (24... Bd7 $16) 25. Bxg6 $4 {[%emt 0:00:05][%mdl 8192]} (25. Qxg6 $18 {Rh8+ would kill now.} Qxg6 26. Bxg6) 25... Rg4 $1 {[%emt 0:00:04] Weighted Error Value: White=0.51/Black=0.37} 0-1

[Event "CCT Airthings Masters Play-In 2023"]
[Site "Online"]
[Date "2023.02.03"]
[Round "2"]
[White "Panjwani, Raja"]
[Black "Grandelius, Nils"]
[Result "1/2-1/2"]
[ECO "B95"]
[WhiteElo "2485"]
[BlackElo "2660"]
[Annotator "TA"]
[PlyCount "104"]
[EventDate "2023.02.03"]
[EventType "swiss"]
[EventCountry "NET"]
[SourceTitle "playchess.com"]
[Source "ChessBase"]
[SourceQuality "1"]
[TimeControl "600+2"]

{[%evp 12,104,14,-6,0,-13,10,0,21,6,0,-9,29,-51,-50,-52,-34,-38,-39,-87,-81,-74,-83,-71,-76,-87,0,0,19,9,12,0,0,8,10,-117,-135,-172,-191,-187,-180,-171,-34,-53,-57,-52,-31,-50,-22,-16,-15,-42,-16,-14,0,0,0,0,0,0,202,203,175,140,139,12,27,0,0,0,0,0,0,0,0,0,0,0,0,0,0,0,0,0,0,0,0,0,0,0,0,0,0,0,0]} 1. e4 {[%emt 0:00:13]} c5 {[%emt 0:00:05]} 2. Nf3 {[%emt 0:00:02]} d6 {[%emt 0:00:01]} 3. d4 {[%emt 0:00:01]} cxd4 {[%emt 0:00:00]} 4. Nxd4 {[%emt 0:00:01]} Nf6 {[%emt 0:00:00]} 5. Nc3 {[%emt 0:00:00]} a6 {[%emt 0:00:00]} 6. Bg5 {[%emt 0:00:02]} e6 {[%emt 0:00:18]} 7. Qe2 {[%emt 0:00:06]} h6 {[%emt 0:00:12] B95: Sicilian Najdorf: 6 Bg5 e6, unusual White 7th moves.} 8. Bd2 {[%emt 0:00:09]} Qb6 {[%emt 0:00:07]} 9. Nb3 {[%emt 0:00:05]} Qc7 {[%emt 0:00:01]} 10. g4 {[%emt 0:00:04]} b5 {[%emt 0:00:03][%cal Bb7b5,Bb5b4][%mdl 32] [#]} 11. Bg2 $146 {[%emt 0:00:04][%cal Oe4e5]} ({Predecessor:} 11. a3 Nc6 12. Bg2 Rb8 13. h3 Ne5 14. O-O Be7 15. Be1 O-O 16. f4 Nc4 17. Nd1 {0-1 Sobolevsky,L (2300)-Bromberger,S (2490) Nuremberg LGA Cup 5th 2008 (6)}) 11... Bb7 {[%emt 0:00:04]} 12. h4 {[%emt 0:00:34]} (12. a3 $1 $11) 12... b4 $15 {[%emt 0:00:57]} 13. Nd1 {[%emt 0:00:28]} d5 {[%emt 0:00:11][%cal Rf6e4]} (13... Qxc2 $2 14. Rc1 $18 (14. Bxb4 Qxe2+ 15. Kxe2 Bxe4 $17) (14. Bxb4 Qxe2+ 15. Kxe2 Bxe4 $17)) 14. exd5 {[%emt 0:00:18]} Nxd5 {[%emt 0:00:03]} 15. Be4 {[%emt 0:00:36]} (15. f4 $15 {is more appropriate.}) 15... Nd7 $17 {[%emt 0:00:27]} 16. c4 {[%emt 0:00:19]} N5f6 {[%emt 0:00:53][%mdl 64] [#] Discovered Attack} 17. Bxb7 {[%emt 0:00:04]} Qxb7 {[%emt 0:00:00]} 18. Rg1 {[%emt 0:00:07]} Qe4 {[%emt 0:00:53]} ({Better is} 18... a5 $17 19. f3 a4) 19. f3 $11 {[%emt 0:00:19]} Qxe2+ {[%emt 0:00:45]} 20. Kxe2 {[%emt 0:00:00]} Ne5 {[%emt 0:00:49]} 21. Na5 {[%emt 0:01:14]} O-O-O {[%emt 0:00:39]} 22. Be3 {[%emt 0:00:58]} Bd6 {[%emt 0:00:11]} 23. g5 {[%emt 0:01:15]} (23. Nf2 $11) 23... hxg5 $17 {[%emt 0:00:13]} 24. hxg5 {[%emt 0:00:00]} Rh2+ {[%emt 0:00:01]} 25. Nf2 {[%emt 0:00:01] [#]} Nh5 {[%emt 0:00:05]} 26. Rad1 {[%emt 0:00:36]} Bc7 {[%emt 0:00:55]} (26... Ng6 $19 27. f4 Ngxf4+ 28. Kf1 Ng6) 27. Rxd8+ $15 {[%emt 0:00:02]} Kxd8 {[%emt 0:00:18]} 28. f4 $1 {[%emt 0:00:17]} Ng6 {[%emt 0:00:58]} 29. Nc6+ {[%emt 0:00:04]} Kd7 {[%emt 0:00:01]} 30. Nxb4 {[%emt 0:00:01]} Nhxf4+ {[%emt 0:00:07]} (30... a5 {simplifies} 31. Nbd3 Nhxf4+ 32. Nxf4 Nxf4+ 33. Kf3 Ng6) 31. Kf3 {[%emt 0:00:32]} Nh4+ {[%emt 0:00:08]} (31... Ne5+ {simplifies} 32. Kxf4 Nxc4+ 33. Kf3 Nxe3 34. Nxa6 Bb6) 32. Ke4 {[%emt 0:00:19]} Ne2 {[%emt 0:01:08]} 33. Rd1+ {[%emt 0:00:18]} Kc8 $1 {[%emt 0:00:00]} 34. Nxa6 {[%emt 0:00:09]} Ng3+ {[%emt 0:00:05]} 35. Kd3 {[%emt 0:00:02]} Be5 {[%emt 0:00:16]} (35... Bd8 $11) 36. Ng4 $18 {[%emt 0:00:05][%csl LRe5,LRh2]} Rxb2 {[%emt 0:00:04]} 37. Nxe5 {[%emt 0:00:01]} Rxa2 {[%emt 0:00:00]} 38. Bf4 {[%emt 0:00:57]} (38. Nc5 $16 {[%cal Oe3f4] And now Bf4! would win.} Ra3+ 39. Kd2) 38... Rxa6 $11 {[%emt 0:00:02]} 39. Bxg3 {[%emt 0:00:04]} (39. Nxf7 $5 {[%cal Rf7d6]} Nhf5 40. Kc2 $14) 39... Ra3+ {[%emt 0:00:00] The position is equal.} 40. Kd4 {[%emt 0:00:09]} Rxg3 {[%emt 0:00:01]} 41. Nxf7 {[%emt 0:00:02][%mdl 4096] Endgame KRN-KRN} Kd7 {[%emt 0:00:11]} 42. c5 {[%emt 0:00:06]} Ke7 {[%emt 0:00:04]} 43. Ne5 {[%emt 0:00:15]} Nf3+ {[%emt 0:00:08]} 44. Nxf3 {[%emt 0:00:12]} Rxf3 {[%emt 0:00:00] KR-KR} 45. Ra1 {[%emt 0:00:09] Hoping for Ra7+.} Rf4+ {[%emt 0:00:03]} 46. Kd3 {[%emt 0:00:01] Strongly threatening Ra7+.} Rf5 {[%emt 0:00:01]} 47. Ra7+ {[%emt 0:00:02]} Kd8 {[%emt 0:00:01]} 48. Rxg7 {[%emt 0:00:03]} Rxc5 {[%emt 0:00:01]} 49. Kd4 {[%emt 0:00:03]} Rf5 {[%emt 0:00:03]} 50. Ke4 {[%emt 0:00:01]} Ke8 {[%emt 0:00:01]} 51. g6 {[%emt 0:00:02]} Kf8 {[%emt 0:00:03]} 52. Rb7 {[%emt 0:00:01]} Kg8 {[%emt 0:00:03] Never resign too early!   Weighted Error Value: White=0.18 (very precise) /Black=0.18 (very precise)} 1/2-1/2

[Event "CCT Airthings Masters Play-In 2023"]
[Site "Online"]
[Date "2023.02.03"]
[Round "2"]
[White "starworld123"]
[Black "crescentmoon"]
[Result "0-1"]
[ECO "A13"]
[WhiteElo "2485"]
[BlackElo "2637"]
[Annotator "NA"]
[PlyCount "92"]
[EventDate "2023.02.03"]
[EventType "swiss"]
[EventCountry "NET"]
[SourceTitle "playchess.com"]
[Source "ChessBase"]
[SourceQuality "1"]
[TimeControl "600+2"]

1. Nf3 {[%emt 0:00:07]} Nf6 {[%emt 0:00:04]} 2. c4 {[%emt 0:00:01]} e6 {[%emt 0:00:04]} 3. g3 {[%emt 0:00:06]} d5 {[%emt 0:00:04]} 4. Bg2 {[%emt 0:00:08]} dxc4 {[%emt 0:00:02]} 5. Qa4+ {[%emt 0:00:01]} Bd7 {[%emt 0:00:04]} 6. Qxc4 {[%emt 0:00:02]} c5 {[%emt 0:00:01]} 7. O-O {[%emt 0:00:07]} Bc6 {[%emt 0:00:06]} 8. Nc3 {[%emt 0:00:06]} Nbd7 {[%emt 0:00:05]} 9. d4 {[%emt 0:00:29]} Rc8 {[%emt 0:00:52]} 10. Rd1 {[%emt 0:00:14]} b5 {[%emt 0:00:35]} 11. Qd3 {[%emt 0:01:41]} c4 {[%emt 0:00:03]} 12. Qe3 {[%emt 0:00:12]} Be7 {[%emt 0:00:11]} 13. a3 {[%emt 0:00:21]} O-O {[%emt 0:00:06]} 14. Ne5 {[%emt 0:00:08]} Bxg2 {[%emt 0:00:11]} 15. Kxg2 {[%emt 0:00:00]} a6 {[%emt 0:00:49]} 16. Qf3 {[%emt 0:00:11]} Qc7 {[%emt 0:00:49]} 17. Nxd7 {[%emt 0:00:40]} Qxd7 {[%emt 0:00:06]} 18. e4 {[%emt 0:00:02]} Rfd8 {[%emt 0:00:15]} 19. Bg5 {[%emt 0:01:15]} h6 {[%emt 0:00:14]} 20. Bxf6 {[%emt 0:00:03]} Bxf6 {[%emt 0:00:01]} 21. e5 {[%emt 0:00:01]} Be7 {[%emt 0:00:06]} 22. d5 {[%emt 0:00:00]} exd5 {[%emt 0:00:59]} 23. Nxd5 {[%emt 0:00:27]} Qe6 {[%emt 0:00:02]} 24. Qe4 {[%emt 0:00:00]} Rc5 {[%emt 0:00:36]} 25. Nf4 {[%emt 0:00:54]} Qxe5 {[%emt 0:00:35]} 26. Rxd8+ {[%emt 0:00:01]} Bxd8 {[%emt 0:00:01]} 27. Qa8 {[%emt 0:00:01]} Qd6 {[%emt 0:00:02]} 28. Re1 {[%emt 0:00:15]} Kf8 {[%emt 0:00:17]} 29. Qf3 {[%emt 0:00:14]} Bf6 {[%emt 0:00:14]} 30. Qa8+ {[%emt 0:01:07]} Qd8 {[%emt 0:00:15]} 31. Qa7 {[%emt 0:00:52]} Qc7 {[%emt 0:00:18]} 32. Qxa6 {[%emt 0:00:19]} Bxb2 {[%emt 0:00:12]} 33. Kg1 {[%emt 0:00:05]} Bf6 {[%emt 0:00:48]} 34. Qa8+ {[%emt 0:00:34]} Qc8 {[%emt 0:00:07]} 35. Qe4 {[%emt 0:00:01]} Re5 {[%emt 0:00:06]} 36. Qb1 {[%emt 0:00:09]} Rxe1+ {[%emt 0:00:06]} 37. Qxe1 {[%emt 0:00:00]} Qc5 {[%emt 0:00:05]} 38. Qa5 {[%emt 0:00:03]} g6 {[%emt 0:00:11]} 39. Qa8+ {[%emt 0:00:06]} Kg7 {[%emt 0:00:03]} 40. Qb7 {[%emt 0:00:00]} Be7 {[%emt 0:00:20]} 41. Nd5 {[%emt 0:00:06]} Bd6 {[%emt 0:00:14]} 42. Nc3 {[%emt 0:00:00]} Be5 {[%emt 0:00:19]} 43. Ne4 {[%emt 0:00:12]} Qd4 {[%emt 0:00:08]} 44. Qc6 {[%emt 0:00:05]} c3 {[%emt 0:00:05]} 45. Kg2 {[%emt 0:00:02]} Qc4 {[%emt 0:00:07]} 46. Nc5 {[%emt 0:00:04]} Bd4 {[%emt 0:00:16]} 0-1

[Event "CCT Airthings Masters Play-In 2023"]
[Site "Online"]
[Date "2023.02.03"]
[Round "2"]
[White "OK97"]
[Black "chessintuit"]
[Result "1-0"]
[ECO "B30"]
[WhiteElo "2477"]
[BlackElo "2635"]
[Annotator "NA"]
[PlyCount "127"]
[EventDate "2023.02.03"]
[EventType "swiss"]
[EventCountry "NET"]
[SourceTitle "playchess.com"]
[Source "ChessBase"]
[SourceQuality "1"]
[TimeControl "600+2"]

1. e4 {[%emt 0:00:04]} c5 {[%emt 0:00:04]} 2. Nc3 {[%emt 0:00:01]} Nc6 {[%emt 0:00:01]} 3. Bb5 {[%emt 0:00:01]} Nd4 {[%emt 0:00:02]} 4. Nf3 {[%emt 0:00:02]} e6 {[%emt 0:00:01]} 5. O-O {[%emt 0:00:01]} a6 {[%emt 0:00:00]} 6. Bd3 {[%emt 0:00:01]} Nc6 {[%emt 0:00:01]} 7. b3 {[%emt 0:00:01]} g5 {[%emt 0:00:02]} 8. Bb2 {[%emt 0:00:01]} Bg7 {[%emt 0:00:01]} 9. Na4 {[%emt 0:00:01]} Bxb2 {[%emt 0:00:02]} 10. Nxb2 {[%emt 0:00:00]} d6 {[%emt 0:00:03]} 11. Qe2 {[%emt 0:00:14]} e5 {[%emt 0:00:05]} 12. Qe3 {[%emt 0:00:11]} h6 {[%emt 0:00:41]} 13. c3 {[%emt 0:00:10]} Nge7 {[%emt 0:00:09]} 14. Bc2 {[%emt 0:00:28]} Ng6 {[%emt 0:00:18]} 15. h3 {[%emt 0:00:20]} g4 {[%emt 0:00:20]} 16. hxg4 {[%emt 0:00:01]} Bxg4 {[%emt 0:00:00]} 17. a4 {[%emt 0:00:52]} Qf6 {[%emt 0:00:24]} 18. Nh2 {[%emt 0:00:02]} Be6 {[%emt 0:00:03]} 19. Nc4 {[%emt 0:00:23]} O-O-O {[%emt 0:00:04]} 20. Nb6+ {[%emt 0:01:29]} Kb8 {[%emt 0:00:15]} 21. b4 {[%emt 0:00:20]} cxb4 {[%emt 0:02:10]} 22. Nd5 {[%emt 0:00:09]} Bxd5 {[%emt 0:00:01]} 23. exd5 {[%emt 0:00:00]} Nce7 {[%emt 0:00:01]} 24. cxb4 {[%emt 0:00:49]} Nxd5 {[%emt 0:00:06]} 25. Qb3 {[%emt 0:00:46]} Ndf4 {[%emt 0:00:15]} 26. b5 {[%emt 0:00:31]} a5 {[%emt 0:00:14]} 27. Qe3 {[%emt 0:00:18]} d5 {[%emt 0:00:31]} 28. Bxg6 {[%emt 0:00:40]} Nxg6 {[%emt 0:00:34]} 29. Rac1 {[%emt 0:00:03]} Rc8 {[%emt 0:00:49]} 30. b6 {[%emt 0:00:42]} h5 {[%emt 0:00:23]} 31. Rc7 {[%emt 0:00:15]} d4 {[%emt 0:00:47]} 32. Qe4 {[%emt 0:00:09]} Rxc7 {[%emt 0:00:09]} 33. bxc7+ {[%emt 0:00:00]} Kxc7 {[%emt 0:00:00]} 34. Rc1+ {[%emt 0:01:12]} Kb8 {[%emt 0:00:02]} 35. Rb1 {[%emt 0:00:01]} Qe7 {[%emt 0:00:16]} 36. Nf3 {[%emt 0:00:03]} Rc8 {[%emt 0:00:14]} 37. d3 {[%emt 0:00:31]} Ka7 {[%emt 0:00:06]} 38. Nd2 {[%emt 0:00:01]} h4 {[%emt 0:01:17]} 39. Nc4 {[%emt 0:00:08]} Rc5 {[%emt 0:00:02]} 40. Nd6 {[%emt 0:00:04]} b6 {[%emt 0:00:28]} 41. Nc4 {[%emt 0:00:01]} Rxc4 {[%emt 0:00:06]} 42. dxc4 {[%emt 0:00:01]} Nf4 {[%emt 0:00:02]} 43. Qc6 {[%emt 0:00:03]} Qb7 {[%emt 0:00:04]} 44. Qxb7+ {[%emt 0:00:03]} Kxb7 {[%emt 0:00:00]} 45. c5 {[%emt 0:00:01]} Kc6 {[%emt 0:00:15]} 46. cxb6 {[%emt 0:00:02]} Kb7 {[%emt 0:00:01]} 47. Kf1 {[%emt 0:00:02]} f6 {[%emt 0:00:03]} 48. g3 {[%emt 0:00:02]} hxg3 {[%emt 0:00:02]} 49. fxg3 {[%emt 0:00:00]} Nd5 {[%emt 0:00:00]} 50. Rb5 {[%emt 0:00:11]} Nxb6 {[%emt 0:00:03]} 51. Rxa5 {[%emt 0:00:01]} Kc6 {[%emt 0:00:02]} 52. Ke2 {[%emt 0:00:03]} Nd5 {[%emt 0:00:04]} 53. Ra8 {[%emt 0:00:03]} e4 {[%emt 0:00:02]} 54. Rc8+ {[%emt 0:00:02]} Kd6 {[%emt 0:00:02]} 55. Rd8+ {[%emt 0:00:02]} Kc5 {[%emt 0:00:01]} 56. a5 {[%emt 0:00:02]} Nc3+ {[%emt 0:00:01]} 57. Kd2 {[%emt 0:00:01]} e3+ {[%emt 0:00:01]} 58. Kd3 {[%emt 0:00:01]} Nb5 {[%emt 0:00:03]} 59. Rc8+ {[%emt 0:00:05]} Kd6 {[%emt 0:00:03]} 60. a6 {[%emt 0:00:01]} Kd7 {[%emt 0:00:03]} 61. Rb8 {[%emt 0:00:02]} e2 {[%emt 0:00:01]} 62. Kxe2 {[%emt 0:00:01]} Nc3+ {[%emt 0:00:01]} 63. Kd3 {[%emt 0:00:01]} Kc7 {[%emt 0:00:00]} 64. a7 {[%emt 0:00:01]} 1-0

[Event "CCT Airthings Masters Play-In 2023"]
[Site "Online"]
[Date "2023.02.03"]
[Round "2"]
[White "sergoy"]
[Black "ChristopherYoo"]
[Result "0-1"]
[ECO "D38"]
[WhiteElo "2465"]
[BlackElo "2634"]
[Annotator "TA"]
[PlyCount "162"]
[EventDate "2023.02.03"]
[EventType "swiss"]
[EventCountry "NET"]
[SourceTitle "playchess.com"]
[Source "ChessBase"]
[SourceQuality "1"]
[TimeControl "600+2"]

{[%evp 11,161,11,22,2,2,12,16,9,38,0,8,0,0,0,-14,-39,1,2,20,17,20,4,12,12,17,10,32,10,36,44,57,39,31,0,44,0,106,116,98,110,118,114,106,73,78,57,68,0,0,3,32,0,0,0,22,6,49,49,52,59,59,0,0,0,0,-6,0,-174,-167,-173,-170,-166,-96,-96,-84,-87,-91,-122,-127,-359,-358,-397,-384,-377,-366,-349,-288,-700,-669,-1741,-1613,-1362,-966,-6223,-5306,-4133,-3979,-29965,-29966,-29967,-29968,-29961,-29964,-29971,-29971,-29980,-29981,-29981,-29982,-29982,-29978,-29978,-29979,-29979,-29980,-29980,-29981,-29981,-29982,-29984,-29985,-29985,-29986,-29987,-29988,-29988,-29989,-29988,-29989,-29990,-29990,-29990,-29991,-29991,-29992,-29993,-29994,-29997,-29998,-29998,-29995,-29995,-29996,-29996,-29997,-29997,-29997,-29997,-29998,-29998,-29999,-29999]} 1. d4 {[%emt 0:00:04]} Nf6 {[%emt 0:00:09]} 2. c4 {[%emt 0:00:01]} e6 {[%emt 0:00:00]} 3. Nf3 {[%emt 0:00:00]} d5 {[%emt 0:00:01]} 4. Nc3 {[%emt 0:00:06]} Bb4 {[%emt 0:00:02]} 5. Qa4+ {[%emt 0:00:02]} Nc6 {[%emt 0:00:02]} 6. e3 {[%emt 0:00:00]} O-O {[%emt 0:00:01]} 7. Qc2 {[%emt 0:00:01] D38: Queen's Gambit Declined: Ragozin Defence (4 Nf3 Bb4).} Re8 {[%emt 0:00:09]} 8. Bd2 {[%emt 0:00:07]} Bf8 {[%emt 0:00:59]} 9. a3 {[%emt 0:00:01] The position is equal.} a6 {[%emt 0:00:40]} 10. h3 {[%emt 0:00:04]} h6 {[%emt 0:01:06]} 11. Be2 {[%emt 0:00:56]} dxc4 {[%emt 0:01:23]} 12. Bxc4 {[%emt 0:00:01]} e5 {[%emt 0:00:02] [#]} 13. d5 $146 {[%emt 0:00:42]} ({But not} 13. Qg6 $2 Be6 14. Bxe6 Rxe6 $19) ({Predecessor:} 13. dxe5 Nxe5 14. Nxe5 Rxe5 15. f4 Bf5 16. Qb3 Re7 17. g4 Ne4 18. O-O-O Nc5 19. Qa2 {0-1 Mardov,D (2414)-Antipov,M (2603) Saint Louis 1000 GM 2nd 2022 (1)}) 13... Na5 {[%emt 0:00:08]} (13... b5 {is interesting.} 14. Ba2 e4 15. Nxe4 Nxe4 16. dxc6 Bf5) 14. Ba2 {[%emt 0:00:05] [#] Strongly threatening b4.} b6 {[%emt 0:00:29]} 15. e4 {[%emt 0:00:22]} Nb7 {[%emt 0:00:22]} 16. O-O {[%emt 0:01:50]} Nd6 {[%emt 0:00:06]} 17. Rfe1 {[%emt 0:00:01]} Bb7 {[%emt 0:00:11]} 18. Rad1 {[%emt 0:00:57]} b5 {[%emt 0:01:37]} 19. Be3 {[%emt 0:01:21]} a5 {[%emt 0:00:14]} (19... c6 {seems wilder.} 20. dxc6 Bxc6 21. Nh4 Nfxe4 22. Ng6 Nxc3 23. Qxc3 Qf6) 20. Bc5 {[%emt 0:00:10]} Ba6 {[%emt 0:00:05]} 21. b4 {[%emt 0:00:07]} Nd7 {[%emt 0:00:04]} 22. Ne2 {[%emt 0:00:19]} axb4 {[%emt 0:00:20]} 23. axb4 {[%emt 0:00:24]} Nc4 {[%emt 0:00:03]} (23... Nxc5 $11 24. bxc5 Nb7) 24. Bxf8 $16 {[%emt 0:00:11]} Rxf8 {[%emt 0:00:01]} 25. Bxc4 {[%emt 0:00:04]} bxc4 {[%emt 0:00:01]} 26. Nc3 {[%emt 0:00:02]} Qe7 {[%emt 0:00:20]} 27. Rb1 {[%emt 0:00:15]} Nb6 {[%emt 0:00:12]} 28. b5 {[%emt 0:00:36]} Bc8 {[%emt 0:00:07]} 29. Ra1 {[%emt 0:00:29]} (29. Nd1 $14) 29... Bd7 $11 {[%emt 0:00:25]} 30. Ra6 {[%emt 0:00:08]} Qc5 {[%emt 0:00:47]} 31. Qb2 {[%emt 0:00:39]} f6 {[%emt 0:00:18]} 32. Rea1 {[%emt 0:00:02]} Rfb8 {[%emt 0:00:26]} 33. Nd2 {[%emt 0:00:29]} Bc8 {[%emt 0:00:10]} 34. Rxa8 {[%emt 0:00:04]} Rxa8 {[%emt 0:00:02]} 35. Rxa8 {[%emt 0:00:03]} Nxa8 {[%emt 0:00:00]} 36. Qa2 {[%emt 0:00:05]} (36. Na4 $14 c3 37. Qxc3 Qxb5 38. Qc2) 36... Nb6 {[%emt 0:00:01]} 37. Qa7 {[%emt 0:00:01]} Kh7 {[%emt 0:00:07]} 38. Ndb1 {[%emt 0:00:21]} f5 {[%emt 0:00:02][%cal Bf6f5,Bf5e4,Be4d3][%mdl 32]} 39. Qa2 $2 {[%emt 0:00:04]} (39. Nd2 $11 {and White stays safe.}) 39... fxe4 $19 {[%emt 0:00:02]} 40. Qe2 {[%emt 0:00:01]} Bf5 {[%emt 0:00:02]} (40... Nxd5 $2 41. Qxe4+ (41. Nxe4 Qb4 $17) 41... Kg8 42. Nxd5 $18) 41. Nd2 {[%emt 0:00:01]} Nxd5 {[%emt 0:00:03]} (41... Qd4 $19 42. Ndxe4 Nxd5 43. Nxd5 Qxd5) 42. Nxd5 $17 {[%emt 0:00:01]} Qxd5 {[%emt 0:00:01]} 43. Nxc4 {[%emt 0:00:00]} Qd3 {[%emt 0:00:03] Wards off Ne3} 44. Qxd3 {[%emt 0:00:06]} exd3 {[%emt 0:00:00][%mdl 4096] Endgame KB-KN} 45. f3 $2 {[%emt 0:00:00] Now White is beyond hope.} (45. Kf1 $17 {only move.}) 45... Bd7 $19 {[%emt 0:00:03]} 46. Kf2 {[%emt 0:00:05]} Bxb5 {[%emt 0:00:00]} 47. Nd2 {[%emt 0:00:00]} Kg6 {[%emt 0:00:03]} 48. Ke3 {[%emt 0:00:00]} Kf5 {[%emt 0:00:00]} 49. g4+ $2 {[%emt 0:00:01]} (49. Ne4) 49... Ke6 {[%emt 0:00:01]} 50. Ke4 {[%emt 0:00:01]} c5 {[%emt 0:00:00]} 51. Nb1 {[%emt 0:00:04]} c4 {[%emt 0:00:03] [#] aiming for ...Bc6+.} 52. Nc3 {[%emt 0:00:01]} Bc6+ {[%emt 0:00:01]} 53. Ke3 {[%emt 0:00:01]} Kd6 {[%emt 0:00:02] Threatens to win with ...Kc5.} 54. f4 {[%emt 0:00:04]} exf4+ {[%emt 0:00:02] Black mates.} 55. Kxf4 {[%emt 0:00:01]} g5+ {[%emt 0:00:00]} 56. Ke3 {[%emt 0:00:01]} Ke5 {[%emt 0:00:03]} 57. Nb1 {[%emt 0:00:01]} Bg2 {[%emt 0:00:01]} 58. Nd2 {[%emt 0:00:02]} c3 {[%emt 0:00:04]} 59. Nc4+ {[%emt 0:00:01]} Kd5 {[%emt 0:00:00]} 60. Nb6+ {[%emt 0:00:00]} Kc6 {[%emt 0:00:06]} 61. Na4 {[%emt 0:00:05]} c2 {[%emt 0:00:01]} 62. Kd2 {[%emt 0:00:01]} Bxh3 {[%emt 0:00:00]} 63. Nb2 {[%emt 0:00:01]} Bxg4 {[%emt 0:00:01]} 64. Nxd3 {[%emt 0:00:00]} Kd6 {[%emt 0:00:07]} 65. Ke3 {[%emt 0:00:08]} Bf5 {[%emt 0:00:01]} 66. Nc1 {[%emt 0:00:00]} h5 {[%emt 0:00:00]} 67. Kf3 {[%emt 0:00:01]} h4 {[%emt 0:00:01]} 68. Nb3 {[%emt 0:00:03]} Ke5 {[%emt 0:00:01]} 69. Nc1 {[%emt 0:00:01]} g4+ {[%emt 0:00:01]} 70. Ke3 {[%emt 0:00:00]} g3 {[%emt 0:00:00]} 71. Kf3 {[%emt 0:00:00]} Be4+ {[%emt 0:00:01]} 72. Ke2 {[%emt 0:00:01]} h3 {[%emt 0:00:01]} 73. Ke1 {[%emt 0:00:01]} h2 {[%emt 0:00:00]} 74. Kf1 {[%emt 0:00:00]} h1=Q+ {[%emt 0:00:01]} 75. Ke2 {[%emt 0:00:00]} Qf3+ {[%emt 0:00:02]} 76. Kd2 {[%emt 0:00:01]} g2 {[%emt 0:00:02]} 77. Ne2 {[%emt 0:00:01]} Qd3+ {[%emt 0:00:03]} 78. Kc1 {[%emt 0:00:01]} g1=Q+ {[%emt 0:00:03]} 79. Nxg1 {[%emt 0:00:01]} Qe3+ {[%emt 0:00:00]} 80. Kb2 {[%emt 0:00:01]} c1=Q+ {[%emt 0:00:00]} 81. Ka2 {[%emt 0:00:01]} Qea3# {[%emt 0:00:00] Weighted Error Value: White=0.64/Black=0.13 (very precise)} 0-1